bitfinex/quotes_ETHUSD_20220213
["timestamp","ask_amount","ask_price","bid_price","bid_amount"]
[1644720033024,5.0,2919.8,2918.4,0.25]
[1644720033218,0.1711,2919.7,2918.5,0.00245341]
[1644720033517,4.4834,2919.9,2918.5,0.00245341]
[1644720033518,1.301,2919.8,2918.5,0.00245341]
[1644720033717,1.301,2919.8,2919.0,0.01013532]
[1644720034719,1.301,2919.8,2918.6,0.00245341]
[1644720034919,5.20983937,2919.8,2919.3,0.01013491]
[1644720035120,1.301,2919.8,2919.3,0.01013491]
[1644720035919,1.301,2919.8,2918.6,0.00245341]
[1644720036126,3.82242565,2919.7,2919.4,0.01013471]
[1644720036321,0.1711,2919.6,2919.4,0.01013471]
[1644720036585,0.1711,2919.7,2919.4,0.01013471]
[1644720037077,0.1711,2919.7,2918.6,0.00245341]
[1644720037277,0.1711,2919.7,2919.4,0.01013471]
[1644720038279,0.1711,2919.7,2918.6,0.00245341]
[1644720038478,0.1711,2919.7,2919.4,0.01013471]
[1644720039381,0.1711,2919.7,2918.6,0.00245341]
[1644720039680,0.1711,2919.7,2919.4,0.01013471]
[1644720040618,0.1988716,2919.7,2918.6,0.00245341]
[1644720040910,0.1988716,2919.7,2919.4,0.01013471]
[1644720041914,1.45725509,2919.6,2918.6,0.00245341]
[1644720042113,3.78426807,2919.5,2919.4,0.01013471]
[1644720042312,0.1988716,2919.7,2919.4,0.01013471]
[1644720042530,1.45726729,2919.6,2919.4,0.01013471]
[1644720043023,1.45726729,2919.6,2918.6,0.00245341]
[1644720043024,6.75726729,2919.6,2918.6,0.00245341]
[1644720043221,0.91369627,2918.8,2918.6,0.00245341]
[1644720043418,6.62019627,2918.8,2918.1,0.00245341]
[1644720043914,4.6266,2918.7,2917.6,0.00245341]
[1644720044175,9.442,2918.7,2917.1,3.77015341]
[1644720044379,9.442,2918.7,2917.2,0.00245341]
[1644720044777,1.06278141,2917.9,2917.2,1.00245341]
[1644720044979,1.06278141,2917.9,2917.3,0.00245341]
[1644720045378,3.37816455,2917.8,2917.3,0.00245341]
[1644720045782,3.37816455,2917.8,2917.5,0.01013204]
[1644720045980,1.06278141,2917.9,2917.5,0.01013204]
[1644720046677,1.06278141,2917.9,2917.3,0.00245341]
[1644720046879,3.42572944,2917.8,2917.6,0.0101319]
[1644720047078,3.47406303,2917.8,2917.6,0.0101319]
[1644720047281,5.0,2917.7,2917.6,0.0101319]
[1644720047480,5.0,2917.7,2915.4,4.4005115]
[1644720047481,4.55,2917.6,2915.4,4.4005115]
[1644720047683,5.03775593,2917.2,2915.5,0.25]
[1644720047917,5.0,2916.8,2916.3,0.00249594]
[1644720048715,1.00004594,2916.7,2916.3,0.00249594]
[1644720048917,1.00004594,2916.7,2915.6,0.00249594]
[1644720049113,5.13254594,2916.7,2915.6,0.00249594]
[1644720049914,3.85999079,2916.6,2915.6,0.00249594]
[1644720050120,1.14301257,2915.8,2915.6,0.00249594]
[1644720050317,1.14301257,2915.8,2915.1,0.00249594]
[1644720050517,1.14301257,2915.8,2914.9,0.014836]
[1644720051665,1.14301257,2915.8,2915.2,0.00953306]
[1644720051866,0.13819997,2916.5,2915.2,0.49853306]
[1644720052066,0.13819997,2916.5,2915.3,0.00249594]
[1644720052968,0.94509967,2916.0,2915.8,0.00953243]
[1644720053368,0.30949997,2916.5,2915.8,0.00953243]
[1644720053967,0.30949997,2916.5,2915.3,0.00249594]
[1644720054170,0.30949997,2916.5,2916.0,0.00953214]
[1644720054171,0.13819997,2916.5,2916.0,0.00953214]
[1644720054374,5.4444,2917.1,2916.1,0.489]
[1644720054570,0.03775593,2917.2,2916.2,3.50249594]
[1644720054770,0.03775593,2917.2,2916.4,6.113]
[1644720054970,0.03775593,2917.2,2916.5,0.49149594]
[1644720055172,0.03775593,2917.2,2916.3,1.0]
[1644720055173,0.03775593,2917.2,2916.6,0.00249594]
[1644720055413,0.03775593,2917.2,2916.6,0.00953151]
[1644720056218,0.03775593,2917.2,2916.4,1.45948594]
[1644720056412,0.03775593,2917.2,2916.4,2.45948594]
[1644720056616,0.88831782,2917.2,2916.8,0.00956251]
[1644720057416,0.88831782,2917.2,2916.4,0.00249594]
[1644720057816,0.88831782,2917.2,2916.9,0.00956239]
[1644720058017,0.03775593,2917.2,2916.9,0.00956239]
[1644720058618,0.03775593,2917.2,2916.4,0.85947594]
[1644720059068,0.91560369,2917.1,2916.9,0.00956233]
[1644720059663,0.86560369,2917.1,2916.9,0.00956233]
[1644720059863,0.86560369,2917.1,2916.4,0.00249594]
[1644720060264,0.86560369,2917.1,2916.9,0.00956021]
[1644720061064,0.86560369,2917.1,2916.4,0.00249594]
[1644720061264,0.1713,2917.0,2916.4,0.00249594]
[1644720061473,5.0,2916.9,2916.4,0.00249594]
[1644720061666,5.0,2916.9,2915.9,0.00249594]
[1644720061667,0.1713,2916.8,2915.9,0.00249594]
[1644720061867,4.40745498,2916.8,2915.9,0.00249594]
[1644720062065,4.40745498,2916.8,2915.4,0.00249594]
[1644720062265,0.1713,2916.8,2915.4,0.00249594]
[1644720062467,0.1713,2916.9,2915.4,0.00249594]
[1644720062666,0.87788802,2916.0,2915.4,0.00249594]
[1644720063119,0.1713,2916.9,2915.4,0.00249594]
[1644720063320,5.0,2916.7,2915.4,0.00249594]
[1644720063719,5.0,2916.7,2916.0,0.01010218]
[1644720063920,4.9687106,2917.0,2916.0,0.01010218]
[1644720063921,5.0,2916.5,2916.0,0.01010218]
[1644720064320,0.1713,2916.4,2916.0,0.01010218]
[1644720064723,1.01345842,2915.5,2915.4,0.00249594]
[1644720064920,1.01345842,2915.5,2914.9,0.00249594]
[1644720065121,8.3578,2916.2,2914.9,6.27886526]
[1644720065320,8.3578,2916.2,2914.9,9.45781426]
[1644720065520,8.3578,2916.2,2915.0,6.27636932]
[1644720065720,8.3578,2916.2,2915.1,0.00249594]
[1644720066121,1.17088199,2916.0,2915.5,0.01010292]
[1644720067164,1.17088199,2916.0,2915.1,6.27886526]
[1644720067363,1.17088199,2916.0,2915.6,0.01010272]
[1644720068379,0.02020544,2915.5,2915.2,0.00249594]
[1644720068569,0.02020544,2915.5,2915.1,6.27636932]
[1644720070318,0.02020544,2915.5,2914.6,0.00249594]
[1644720070319,0.02020544,2915.5,2914.7,6.27636932]
[1644720070516,0.02020544,2915.5,2914.8,0.00249594]
[1644720071019,0.95323204,2915.5,2914.8,0.00249594]
[1644720071826,0.02020544,2915.5,2914.8,3.50249594]
[1644720072023,0.02020544,2915.5,2914.9,0.489]
[1644720072222,0.02020544,2915.5,2915.0,0.0125941]
[1644720072420,0.02020544,2915.5,2915.1,0.489]
[1644720073524,0.02020544,2915.5,2915.2,0.01009795]
[1644720073724,0.02020544,2915.5,2915.3,0.489]
[1644720073924,0.02020544,2915.5,2915.3,0.66109129]
[1644720074166,0.02020544,2915.5,2915.4,3.44610528]
[1644720074379,0.02020544,2915.5,2915.4,5.23510528]
[1644720074569,0.02020544,2915.5,2915.4,1.96109129]
[1644720074769,0.02020544,2915.5,2915.4,0.96109129]
[1644720074968,0.02020544,2915.5,2915.4,4.22481868]
[1644720075168,0.02020544,2915.5,2915.4,0.96109129]
[1644720075368,0.02020544,2915.5,2915.4,1.96109129]
[1644720075569,0.02020544,2915.5,2915.4,0.96109129]
[1644720075769,0.02020544,2915.5,2915.4,1.96109129]
[1644720075969,0.02020544,2915.5,2915.4,0.96109129]
[1644720076170,0.02020544,2915.5,2915.4,1.96109129]
[1644720076369,0.02020544,2915.5,2915.4,1.81837129]
[1644720076576,0.02020544,2915.5,2915.4,2.81837129]
[1644720077172,0.02020544,2915.5,2915.4,1.81837129]
[1644720077371,0.02020544,2915.5,2915.4,2.64628]
[1644720078018,0.02020544,2915.5,2915.4,5.88984823]
[1644720078217,0.02020544,2915.5,2915.4,2.64628]
[1644720078425,0.02020544,2915.5,2915.4,11.28105585]
[1644720078620,0.0403748,2916.5,2915.7,1.71414]
[1644720078823,0.0403748,2916.5,2915.9,6.113]
[1644720079018,0.0403748,2916.5,2916.0,0.489]
[1644720079218,0.1713,2917.1,2916.0,1.79149594]
[1644720079419,0.01009436,2916.7,2916.1,0.00249594]
[1644720079624,0.01009436,2916.7,2916.2,0.489]
[1644720079820,0.01009436,2916.7,2916.2,0.789]
[1644720080220,0.01009436,2916.7,2916.2,1.089]
[1644720080421,0.1713,2917.1,2916.2,1.089]
[1644720080619,0.01009489,2916.7,2916.3,0.00249594]
[1644720080821,0.01009489,2916.7,2916.3,0.49149594]
[1644720081020,0.01009489,2916.7,2916.3,0.489]
[1644720081219,0.01009489,2916.7,2916.3,0.49149594]
[1644720081666,1.13818415,2916.8,2916.3,0.49149594]
[1644720081867,0.01009499,2916.7,2916.3,0.489]
[1644720082068,0.01009499,2916.7,2916.4,0.00249594]
[1644720082269,0.01009499,2916.7,2916.3,0.489]
[1644720082665,1.13818415,2916.8,2916.3,0.489]
[1644720082871,1.13818415,2916.8,2916.4,0.00249594]
[1644720083170,0.01009499,2916.7,2916.4,0.00249594]
[1644720083369,0.01009499,2916.7,2916.3,0.489]
[1644720083969,0.1713,2917.1,2916.3,0.489]
[1644720084174,0.01009499,2916.7,2916.4,0.00249594]
[1644720084369,0.01009499,2916.7,2916.3,0.489]
[1644720085321,0.06305262,2916.7,2916.3,0.489]
[1644720086318,0.05295763,2916.7,2916.3,0.489]
[1644720086517,0.06305262,2916.7,2916.3,0.489]
[1644720087324,1.45868771,2916.6,2916.3,0.489]
[1644720088322,0.97550406,2916.2,2916.1,0.85709]
[1644720088522,0.97550406,2916.2,2916.1,1.15709]
[1644720089766,0.97550406,2916.2,2916.1,1.64609]
[1644720093020,2.43425781,2916.2,2916.1,1.64609]
[1644720093619,0.97550406,2916.2,2916.1,1.64609]
[1644720096423,0.05047142,2916.7,2916.2,4.25]
[1644720096673,0.05047142,2916.7,2916.3,4.1603]
[1644720096872,0.1713,2916.8,2916.7,4.1]
[1644720097069,0.1713,2916.8,2916.7,11.85868]
[1644720097269,0.1713,2916.8,2916.7,13.33077129]
[1644720098470,0.03775593,2917.2,2916.8,4.25]
[1644720098673,0.03775593,2917.2,2917.0,6.113]
[1644720098973,0.03775593,2917.2,2917.1,0.489]
[1644720099173,0.03775593,2917.2,2917.1,1.489]
[1644720100828,0.03775593,2917.2,2917.1,4.66743274]
[1644720101125,0.03775593,2917.2,2917.1,2.34575]
[1644720101325,0.03775593,2917.2,2917.1,5.52251728]
[1644720105176,0.01009446,2917.3,2917.2,4.25]
[1644720105379,0.01009446,2917.3,2917.2,16.27882434]
[1644720105572,0.1714,2918.5,2917.2,16.27882434]
[1644720105573,0.1714,2918.5,2917.5,0.85647]
[1644720105774,0.04037125,2917.8,2917.7,6.113]
[1644720105975,5.49913738,2919.0,2917.8,4.25]
[1644720106177,0.1713,2918.8,2917.9,4.14792226]
[1644720106374,1.45789073,2918.7,2918.0,1.0]
[1644720106573,1.45789073,2918.6,2918.1,3.70485193]
[1644720106773,1.45789073,2918.5,2918.2,1.0]
[1644720106974,3.7155,2919.0,2918.3,0.489]
[1644720107174,3.7155,2919.0,2918.4,0.85641]
[1644720107175,1.4578222,2918.9,2918.4,0.85641]
[1644720107374,1.4578222,2918.9,2918.5,0.489]
[1644720107575,0.97178404,2918.8,2918.5,0.489]
[1644720107824,1.4578222,2918.7,2918.5,0.489]
[1644720108429,0.378,2918.3,2918.0,1.0]
[1644720108628,0.378,2918.3,2918.1,0.489]
[1644720109430,0.38414649,2918.3,2918.2,0.85641]
[1644720109630,0.38414649,2918.3,2918.2,1.34541]
[1644720110231,0.38414649,2918.3,2918.2,1.94541]
[1644720110430,0.378,2918.3,2918.2,2.94541]
[1644720114174,0.378,2918.3,2918.2,2.95496232]
[1644720115420,0.378,2918.3,2918.2,2.98667506]
[1644720118829,0.378,2918.3,2918.2,2.97712274]
[1644720125634,0.378,2918.3,2918.2,3.14921403]
[1644720125834,0.01009297,2918.4,2918.3,4.25]
[1644720126033,3.5,2919.3,2918.5,1.71235]
[1644720126238,1.1733,2919.4,2918.6,0.789]
[1644720126239,0.04036582,2918.8,2918.6,0.789]
[1644720127073,0.04036582,2918.8,2918.6,0.489]
[1644720127278,3.5,2919.3,2918.2,0.52071274]
[1644720127279,0.98523902,2918.4,2918.2,0.52071274]
[1644720127474,0.98523902,2918.4,2918.2,0.03171274]
[1644720128377,0.06342548,2918.0,2917.5,0.67567746]
[1644720128576,0.06342548,2918.0,2917.7,0.01009564]
[1644720129578,0.06342548,2918.0,2917.5,0.50437746]
[1644720129780,0.07351899,2918.0,2917.7,0.0100947]
[1644720130825,0.06342548,2918.0,2917.6,0.3]
[1644720131031,0.96945131,2917.9,2917.7,0.0100947]
[1644720131829,0.07351899,2918.0,2917.7,0.0100947]
[1644720132028,0.06342548,2918.0,2917.3,0.489]
[1644720132226,0.01009358,2917.9,2917.7,0.01009459]
[1644720133029,0.01009358,2917.9,2917.7,0.86671459]
[1644720133230,0.06342548,2918.0,2917.7,0.85662]
[1644720133431,0.01009358,2917.9,2917.7,0.86671459]
[1644720134087,0.01009358,2917.9,2917.7,0.01009459]
[1644720134374,0.06342548,2918.0,2917.3,1.089]
[1644720134574,0.01009358,2917.9,2917.7,0.01009459]
[1644720134974,0.01009358,2917.9,2917.8,0.66109129]
[1644720135575,0.06342548,2918.0,2917.8,0.66109129]
[1644720135776,0.07351899,2918.0,2917.8,0.66109129]
[1644720136375,0.10133835,2918.0,2917.8,0.66109129]
[1644720136876,0.09124484,2918.0,2917.8,0.66109129]
[1644720137076,0.10133829,2918.0,2917.8,0.66109129]
[1644720138126,0.09124484,2918.0,2917.8,0.66109129]
[1644720138327,0.10133829,2918.0,2917.8,0.66109129]
[1644720139126,0.09124484,2918.0,2917.8,0.96109129]
[1644720139333,0.09124484,2918.0,2917.8,1.26109129]
[1644720139634,0.1713,2918.7,2917.9,0.17209129]
[1644720139635,0.04036508,2918.7,2917.9,0.17209129]
[1644720139831,0.04036508,2918.7,2918.5,6.113]
[1644720140029,0.04036508,2918.7,2918.6,0.6603]
[1644720140228,0.04036508,2918.7,2918.6,1.9603]
[1644720140428,7.1875,2919.1,2918.6,2.2603]
[1644720140628,1.45762459,2919.0,2918.6,2.2603]
[1644720141573,1.45762459,2918.9,2918.6,2.089]
[1644720141777,1.45762459,2918.8,2918.6,2.089]
[1644720141978,1.45762459,2918.8,2918.6,2.94522]
[1644720142981,1.45761952,2918.7,2918.6,2.94522]
[1644720143281,1.45761585,2918.7,2918.6,1.94522]
[1644720143680,0.01009235,2918.8,2918.6,2.94522]
[1644720144082,4.5812,2919.2,2918.6,2.94522]
[1644720144282,0.01009235,2918.8,2918.6,2.94522]
[1644720144684,1.45761368,2918.7,2918.6,2.94522]
[1644720146035,1.45761368,2918.7,2918.4,0.50493369]
[1644720146231,1.45761368,2918.7,2918.4,0.80493369]
[1644720146630,1.45761368,2918.7,2918.4,1.10493369]
[1644720146831,1.46770624,2918.7,2918.4,1.10493369]
[1644720147034,1.46770624,2918.7,2918.4,0.50493369]
[1644720147035,1.45761368,2918.6,2918.4,0.50493369]
[1644720147830,1.45761368,2918.5,2918.4,0.50493369]
[1644720150981,1.45761368,2918.5,2918.4,0.80493369]
[1644720151181,1.45761368,2918.5,2918.4,1.10493369]
[1644720151685,0.03814887,2919.0,2918.5,0.8563]
[1644720151897,1.45752971,2918.9,2918.8,6.113]
[1644720152082,1.45752971,2918.9,2918.8,6.902]
[1644720152284,1.45752971,2918.9,2918.8,8.37409129]
[1644720153130,1.45752971,2919.5,2918.8,8.37409129]
[1644720153331,1.45752971,2919.5,2919.0,0.85622]
[1644720153532,1.45752971,2919.5,2919.1,0.489]
[1644720153932,0.00610262,2919.4,2919.1,0.489]
[1644720154131,1.45752971,2919.3,2919.1,0.489]
[1644720154737,3.8842,2919.6,2919.3,4.05]
[1644720154942,3.0656,2919.8,2919.5,0.85599]
[1644720155133,3.0656,2919.8,2919.6,0.489]
[1644720155134,0.04036513,2919.8,2919.6,0.489]
[1644720155332,0.04036513,2919.8,2919.4,0.6014949]
[1644720155333,0.04036513,2919.8,2919.7,0.489]
[1644720155931,8.50643842,2920.0,2919.7,0.489]
[1644720155932,9.1561076,2920.0,2919.7,0.489]
[1644720156331,0.01009204,2919.9,2919.7,0.489]
[1644720157179,7.48,2920.0,2919.7,0.489]
[1644720157583,0.01009198,2919.9,2919.7,0.489]
[1644720158385,7.48,2920.0,2919.7,0.489]
[1644720158583,0.01009198,2919.9,2919.7,0.489]
[1644720159588,7.48,2920.0,2919.7,0.489]
[1644720159985,0.01009198,2919.9,2919.7,0.489]
[1644720160828,7.48,2920.0,2919.7,0.489]
[1644720161032,7.48,2920.0,2919.8,3.29929122]
[1644720161033,0.01009198,2919.9,2919.8,3.29929122]
[1644720161231,0.00364511,2920.3,2919.8,0.789]
[1644720161439,0.00364511,2920.3,2920.0,6.113]
[1644720161630,0.00364511,2920.3,2920.1,0.489]
[1644720161829,0.04036185,2920.4,2920.1,0.489]
[1644720162032,0.65331429,2920.5,2920.1,0.489]
[1644720162429,0.65331429,2920.5,2920.1,1.34479]
[1644720163036,0.00364511,2920.5,2920.1,1.34479]
[1644720163234,0.65331429,2920.5,2920.1,1.34479]
[1644720164085,0.65331429,2920.5,2920.1,1.86316139]
[1644720164680,0.00364511,2920.5,2920.1,1.86316139]
[1644720165279,0.03917049,2920.5,2920.1,1.86316139]
[1644720165881,0.01009129,2920.4,2920.1,1.86316139]
[1644720166885,1.06480962,2920.4,2920.1,1.86316139]
[1644720167083,1.07490098,2920.4,2920.1,0.51837139]
[1644720168038,1.7144788,2920.4,2920.1,0.51837139]
[1644720168229,1.7144788,2920.4,2919.4,0.3]
[1644720168230,1.07490098,2920.4,2919.4,0.3]
[1644720168430,1.07490098,2920.4,2919.4,0.4711]
[1644720168831,3.44103773,2920.3,2919.4,0.4711]
[1644720169233,1.06480962,2920.4,2919.4,0.4711]
[1644720169432,0.01009173,2920.0,2919.4,0.4711]
[1644720170434,1.11851067,2920.4,2919.4,0.4711]
[1644720170637,0.01009142,2920.0,2919.4,0.4711]
[1644720171036,1.03711903,2919.9,2919.3,2.2011]
[1644720171236,1.03711903,2919.9,2919.1,0.01009474]
[1644720171237,3.47348484,2919.8,2919.1,0.01009474]
[1644720171434,1.03711903,2919.9,2919.1,0.01009474]
[1644720171690,1.03711903,2919.9,2919.0,0.489]
[1644720171887,1.03711903,2919.9,2919.1,0.01009421]
[1644720172890,1.03711903,2919.9,2919.0,0.489]
[1644720173091,1.03711903,2919.9,2919.1,0.01009432]
[1644720174090,1.03711903,2919.9,2919.0,0.489]
[1644720174291,1.03711903,2919.9,2919.1,0.01009432]
[1644720174491,1.03711903,2919.9,2919.1,0.18119432]
[1644720174891,1.45728029,2919.8,2919.1,0.18119432]
[1644720175328,1.45728029,2919.8,2919.1,0.1711]
[1644720175531,1.45728029,2919.8,2919.1,0.18119421]
[1644720176532,1.45728029,2919.8,2919.1,0.1711]
[1644720176733,1.45728029,2919.8,2919.1,0.18119421]
[1644720177737,1.45728029,2919.8,2919.1,0.1711]
[1644720177941,1.45728029,2919.8,2919.1,0.18119421]
[1644720178942,1.45728029,2919.8,2919.1,0.1711]
[1644720179179,1.45728029,2919.8,2919.1,0.18119421]
[1644720180082,1.45728029,2919.8,2919.2,0.85618]
[1644720180285,1.45728029,2919.8,2919.3,3.6381747]
[1644720180490,0.0100909,2920.0,2919.7,6.113]
[1644720180682,0.0100909,2920.0,2919.8,0.6601]
[1644720180880,0.0100909,2920.0,2919.8,2.2601]
[1644720181089,0.0100909,2920.0,2919.9,0.85588]
[1644720181281,1.45704116,2920.0,2919.9,0.489]
[1644720181483,0.01009184,2920.0,2919.9,0.489]
[1644720181882,1.467133,2920.0,2919.9,0.489]
[1644720182484,1.45704116,2920.0,2919.9,0.489]
[1644720182682,0.01009177,2920.1,2919.9,0.489]
[1644720182934,0.01009177,2920.1,2919.9,1.34488]
[1644720182935,1.45704116,2920.0,2919.9,1.34488]
[1644720185034,0.01009177,2920.1,2919.9,1.34488]
[1644720185235,0.05289084,2920.0,2919.9,1.34488]
[1644720193737,1.50982824,2920.0,2919.9,0.489]
[1644720194785,1.50982824,2920.0,2919.4,2.20095]
[1644720194987,1.4569374,2919.9,2919.4,2.20095]
[1644720195187,1.4569374,2919.9,2919.4,2.50095]
[1644720195385,1.4569374,2919.9,2919.4,2.80095]
[1644720197592,1.14691805,2919.6,2919.4,0.489]
[1644720197834,1.4569374,2919.5,2919.1,0.01009463]
[1644720198037,1.4569374,2919.5,2918.9,1.34523]
[1644720198537,1.4569374,2919.5,2919.1,0.01009432]
[1644720199344,1.4569374,2919.5,2918.9,1.94523]
[1644720199538,1.4569374,2919.5,2919.1,0.0100939]
[1644720200539,1.4569374,2919.5,2918.9,2.11633]
[1644720200740,1.4569374,2919.5,2919.1,0.0100939]
[1644720201787,1.4569374,2919.5,2918.9,1.94523]
[1644720201985,1.4569374,2919.5,2919.1,0.0100939]
[1644720202782,1.45535349,2919.5,2919.1,0.0100939]
[1644720202986,1.45535349,2919.5,2918.9,2.11633]
[1644720203186,1.45535349,2919.5,2919.1,0.0100939]
[1644720204087,1.45535349,2919.5,2918.9,2.11633]
[1644720205332,1.50826007,2919.5,2918.9,2.11633]
[1644720205534,0.05290658,2919.5,2918.9,2.11633]
[1644720207940,0.05290658,2919.5,2919.1,0.01009312]
[1644720208943,0.05290658,2919.5,2918.9,2.97252]
[1644720209184,0.05290658,2919.5,2919.1,0.01009322]
[1644720209587,0.05290658,2919.5,2919.2,2.20117]
[1644720209793,0.05290658,2919.5,2919.3,3.68511416]
[1644720209987,0.05290658,2919.5,2919.4,0.489]
[1644720210187,0.05290658,2919.5,2919.4,5.08742995]
[1644720210389,0.05290658,2919.5,2919.4,5.38742995]
[1644720210591,4.47534511,2920.4,2919.7,0.85591]
[1644720210793,4.47534511,2920.4,2919.8,3.71120689]
[1644720210991,4.47534511,2920.4,2919.8,4.20020689]
[1644720212396,4.47534511,2920.4,2919.8,4.80020689]
[1644720213233,4.30424511,2920.4,2919.9,1.0]
[1644720213434,4.30424511,2920.4,2920.0,0.489]
[1644720213635,4.30424511,2920.4,2920.0,0.789]
[1644720213636,0.00364511,2920.4,2920.0,0.789]
[1644720214035,0.0100895,2920.3,2920.0,0.789]
[1644720214236,0.0100895,2920.3,2920.0,1.089]
[1644720214837,0.05341196,2920.5,2920.0,1.089]
[1644720215038,0.05341196,2920.5,2920.0,0.489]
[1644720215242,0.05341196,2920.5,2919.6,1.88297]
[1644720215243,0.01008957,2920.3,2919.6,0.489]
[1644720215439,0.01008957,2920.3,2919.1,0.01009374]
[1644720215440,0.1711,2920.2,2919.5,0.85607]
[1644720215637,0.00364511,2920.1,2919.5,0.85607]
[1644720215839,0.01008957,2920.3,2919.5,0.85607]
[1644720216239,0.00364511,2920.4,2919.6,0.489]
[1644720216441,0.01008991,2920.0,2919.6,1.34499]
[1644720216684,0.01008991,2920.0,2919.6,0.489]
[1644720216891,0.01008991,2920.0,2919.6,1.489]
[1644720217089,0.01008991,2920.0,2919.6,0.489]
[1644720217291,0.05341196,2920.5,2919.6,0.489]
[1644720217693,0.0100897,2920.0,2919.6,0.489]
[1644720218293,0.0100897,2920.0,2919.6,0.789]
[1644720218493,0.05341196,2920.5,2919.6,0.789]
[1644720218692,0.0100897,2920.0,2919.6,0.489]
[1644720219696,0.05341196,2920.5,2919.6,0.489]
[1644720219897,0.0100897,2920.0,2919.6,0.489]
[1644720220095,0.0100897,2920.0,2919.6,0.789]
[1644720220536,0.0100897,2920.0,2919.7,1.71187]
[1644720220537,0.04583005,2920.0,2919.7,1.71187]
[1644720220734,0.04583005,2920.0,2919.8,0.489]
[1644720220937,0.03574035,2920.0,2919.8,0.489]
[1644720221138,0.04583015,2920.0,2919.8,1.64492]
[1644720221436,0.04583015,2920.0,2919.8,2.64492]
[1644720222039,0.03574035,2920.0,2919.8,2.64492]
[1644720222537,0.04583026,2920.0,2919.8,2.64492]
[1644720223339,0.03574035,2920.0,2919.8,2.64492]
[1644720223537,0.04583026,2920.0,2919.8,2.64492]
[1644720224601,0.03438541,2920.0,2919.8,2.64492]
[1644720224798,0.04447532,2920.0,2919.8,2.64492]
[1644720225200,0.00363516,2920.6,2919.9,6.113]
[1644720225400,0.00363516,2920.6,2920.2,6.113]
[1644720225628,0.00363516,2920.6,2920.3,1.34465]
[1644720225629,1.46028508,2920.6,2920.3,1.34465]
[1644720225803,1.45664992,2920.6,2920.3,1.64465]
[1644720226002,0.00363516,2920.9,2920.3,1.81575]
[1644720226205,1.46018005,2920.9,2920.3,1.64465]
[1644720227110,1.46018005,2920.9,2920.4,0.85569]
[1644720227308,1.46018005,2920.9,2920.5,0.489]
[1644720227709,1.46018005,2920.9,2920.5,0.789]
[1644720228141,1.45654489,2920.8,2920.5,0.789]
[1644720228337,1.46018005,2921.1,2920.5,0.789]
[1644720228537,0.00363516,2921.1,2920.7,1.71129]
[1644720228738,1.45649803,2921.0,2920.8,0.489]
[1644720228938,1.45649803,2920.9,2920.8,1.34464]
[1644720229343,1.45649803,2921.1,2920.8,1.34464]
[1644720229742,0.01008861,2921.0,2920.8,1.34464]
[1644720229942,1.45649803,2920.9,2920.8,1.34464]
[1644720231143,1.45646794,2920.9,2920.8,1.34464]
[1644720231788,0.00363516,2921.2,2920.8,1.34464]
[1644720231990,0.01008861,2921.0,2920.8,0.489]
[1644720232992,0.00363516,2921.4,2920.8,0.489]
[1644720233191,0.01008854,2921.0,2920.8,0.489]
[1644720234193,0.00363516,2921.4,2920.8,0.789]
[1644720234396,0.01008854,2921.0,2920.9,0.85564]
[1644720234593,0.01008854,2921.0,2920.9,1.64464]
[1644720235445,0.00363516,2921.4,2920.9,1.64464]
[1644720235645,0.01008847,2921.1,2920.9,1.6674265]
[1644720235845,0.01008847,2921.1,2921.0,0.3]
[1644720236049,0.01008847,2921.1,2921.0,0.789]
[1644720236446,0.00363516,2921.4,2921.0,0.789]
[1644720236846,3.06374727,2921.6,2921.0,0.789]
[1644720237047,0.0036385,2921.4,2921.0,0.789]
[1644720237249,0.0036385,2921.4,2921.0,1.64456]
[1644720237648,0.0036385,2921.4,2921.0,2.64456]
[1644720238049,0.0036385,2921.4,2921.0,3.15399104]
[1644720240293,0.0036385,2921.4,2921.2,0.02278473]
[1644720240498,3.0270385,2921.6,2921.3,0.489]
[1644720240697,0.95521527,2921.2,2921.0,1.81780878]
[1644720240997,0.95521527,2921.2,2921.1,0.489]
[1644720257107,0.0036385,2921.4,2921.2,2.65]
[1644720257309,1.1768,2921.8,2921.2,2.65]
[1644720257310,0.01008802,2921.3,2921.2,9.61845]
[1644720257705,0.01008802,2921.3,2921.2,10.91845]
[1644720258140,0.0036385,2921.7,2921.2,8.26845]
[1644720258440,0.0036385,2921.7,2921.4,0.85551]
[1644720258641,0.0036385,2921.7,2921.5,0.489]
[1644720258642,1.45613406,2921.7,2921.5,0.489]
[1644720259046,1.45613406,2922.0,2921.5,0.489]
[1644720259442,1.45977256,2922.1,2921.5,0.489]
[1644720259644,0.0097524,2921.9,2921.5,0.489]
[1644720259845,0.0133909,2921.9,2921.5,0.489]
[1644720260046,0.0097524,2921.9,2921.5,0.489]
[1644720260443,0.0036385,2922.1,2921.5,0.489]
[1644720260646,1.45971179,2922.1,2921.5,0.489]
[1644720260946,0.00975246,2921.8,2921.5,0.489]
[1644720261799,0.0036385,2922.1,2921.5,0.489]
[1644720261998,0.00976379,2921.8,2921.5,0.489]
[1644720262897,0.0036385,2922.1,2921.5,0.489]
[1644720263099,1.4597084,2922.1,2921.5,0.489]
[1644720263398,0.00976379,2921.8,2921.5,0.489]
[1644720263999,0.00976379,2921.8,2921.5,0.789]
[1644720264203,0.0036385,2922.1,2921.5,0.789]
[1644720264398,0.00976379,2921.8,2921.5,0.789]
[1644720264599,0.00976379,2921.8,2921.5,0.489]
[1644720264799,0.00976379,2921.8,2921.5,0.789]
[1644720265442,0.0036385,2922.1,2921.5,0.789]
[1644720265644,0.00952989,2921.8,2921.5,0.789]
[1644720266443,0.00952989,2921.8,2921.5,0.489]
[1644720266646,1.45607971,2921.7,2921.5,0.489]
[1644720266851,0.00952989,2921.8,2921.5,0.489]
[1644720267045,1.45608166,2921.7,2921.5,0.789]
[1644720267448,0.00952989,2921.8,2921.5,0.789]
[1644720267746,0.0036385,2922.1,2921.5,0.789]
[1644720267945,0.00952989,2921.8,2921.5,0.789]
[1644720268947,0.0036385,2922.1,2921.5,0.789]
[1644720269194,0.00954567,2921.8,2921.5,0.789]
[1644720269591,1.45602726,2921.7,2921.5,0.789]
[1644720270393,0.00954573,2921.7,2921.5,0.789]
[1644720271295,0.0036385,2922.1,2921.5,0.489]
[1644720271495,1.45969058,2922.1,2921.5,0.489]